Cogmind - Beta 12 X4 @@@ ROGUE MODE // 2022.12.02 @ 19:43:24 Player: youngster Result: Destroyed by as-94964 with Assembled Blade Performance ------------- Evolutions (0) 0 Regions Visited (2) 400 Robots Destroyed (37) 185 Value Destroyed (376) 376 Prototype IDs (4) 80 Alien Tech Used (0) 0 Bonus (0) 0 TOTAL SCORE: 1041 Bonus ------- None Cogmind --------- Core Integrity 0/250 Matter 247/300 Energy 28/100 System Corruption 8% Temperature Cool (0) Movement Treading (160) Location -10/Mines Parts ------- > --- POWER (1) -------- (None) > --- PROPULSION (2) --- Light Treads > --- UTILITY (2) ------ (None) > --- WEAPON (2) ------- (None) > --- INVENTORY (5) ---- Light Treads Huge Storage Unit High-capacity Matter Pod (200) Medium Armor Plating Light Assault Rifle Peak State ------------ > --- POWER ------------ Ion Engine > --- PROPULSION ------- Light Treads Compact Wheel > --- UTILITY ---------- Huge Storage Unit Medium Armor Plating > --- WEAPON ----------- Mace Mace > --- INVENTORY -------- Light Ion Engine Light Ion Engine Light Treads Light Treads Light Treads Large Storage Unit Medium Matter Pod High-capacity Matter Pod High-capacity Matter Pod High-capacity Matter Pod High-capacity Matter Pod Structural Scanner Improved Terrain Scanner Seismic Detector Weapon Shielding Medium Armor Plating Medium Armor Plating Medium Armor Plating EM Pulse Gun Assault Rifle Assault Rifle Light Assault Rifle Light Assault Rifle Mace [Rating: 13] Favorites ----------- Power Light Ion Engine Engine Light Ion Engine Propulsion Light Treads Treads Light Treads Wheel Compact Wheel Utility Medium Armor Plating Device Seismic Detector Storage Huge Storage Unit Protection Medium Armor Plating Weapon Mace Energy Gun EM Pulse Gun Ballistic Gun Light Assault Rifle Special Weapon Enhanced Flamer Impact Weapon Mace Build | -11 -10 -10 ------- Run | Scr Mat Min Slots Evolved . | . . . Power . | . . . Propulsion . | . . . Utility . | . . . Weapon . | . . . Parts Attached 28 | 8 13 7 Power 2 | 1 1 . Engine 2 | 1 1 . Core . | . . . Reactor . | . . . Propulsion 7 | 2 3 2 Treads 5 | 2 1 2 Leg . | . . . Wheel 2 | . 2 . Hover . | . . . Flight . | . . . Utility 7 | 3 3 1 Device 2 | 2 . . Storage 3 | 1 2 . Processor . | . . . Hackware . | . . . Protection 2 | . 1 1 Artifact . | . . . Weapon 12 | 2 6 4 Energy Gun 3 | 1 1 1 Energy Cannon . | . . . Ballistic Gun 4 | 1 3 . Ballistic Cannon . | . . . Launcher . | . . . Special Weapon 2 | . . 2 Impact Weapon 3 | . 2 1 Slashing Weapon . | . . . Piercing Weapon . | . . . Special Melee Weapon . | . . . Unidentified Prototypes . | . . . Corrupted Parts 2 | . . 2 System Corruption 7 | . . 7 Parts Lost 4 | . . 4 Power . | . . . Propulsion 1 | . . 1 Utility 2 | . . 2 Weapon 1 | . . 1 Highest Loss Streak 4 | . . 4 To Critical Strikes . | . . . Average Slot Usage (%) 99 | . 99 98 Engine 13 | . 14 13 Treads 20 | . 21 14 Wheel 7 | . 7 14 Device 1 | . 1 . Storage 14 | . 14 14 Protection 12 | . 12 14 Energy Gun 1 | . . 11 Ballistic Gun 3 | . 2 13 Impact Weapon 22 | . 24 . Naked Turns 3 | . . 3 Heaviest Build 96 | 12 96 96 Greatest Support 40 | 40 40 16 Greatest Overweight (x) 5 | . 5 5 Average Overweight (x) 2 | . 2 4 Largest Inventory Capacity 25 | 8 25 25 Average Capacity 18 | 7 18 24 Most Carried 25 | 5 25 25 Average Carried 15 | 2 14 24 Final Capacity 25 | 8 25 5 Final Carried 25 | 5 25 5 Class Distribution -------------------- 100% | Mutant Dominant Class ---------------- Mutant | -10/Materials Mutant | -10/Mines Resources | -11 -10 -10 ----------- Run | Scr Mat Min Matter Collected 1071 | 294 757 20 Remotely . | . . . Salvage Created 933 | 169 764 . Parts 54 | 15 39 . Haulers Intercepted 2 | . 2 . Recyclers Shooed 2 | . 2 . Parts Field Recycled . | . . . Retrieved Matter . | . . . Parts Self-Destructed . | . . . Prevented . | . . . Kills | -11 -10 -10 ------- Run | Scr Mat Min Combat Hostiles Destroyed 13 | . 13 . Melee 6 | . 6 . Guns 6 | . 6 . Classes Destroyed 9 | 3 6 . Worker 9 | 1 8 . Builder 1 | . 1 . Tunneler 6 | 5 1 . Hauler 2 | . 2 . Recycler 3 | 1 2 . Operator 1 | . 1 . Watcher 2 | . 2 . Swarmer 8 | . 8 . Grunt 5 | . 5 . Best Kill Streak 6 | 6 6 . Combat Bots Only 6 | . 6 . Max Kills in Single Turn 1 | 1 1 . Gunslinging . | . . . Exploded . | . . . Melee 1 | . 1 . Uniques/NPCs Destroyed . | . . . Combat | -11 -10 -10 -------- Run | Scr Mat Min Damage Taken 993 | 40 343 610 Core 274 | . 50 224 Absorbed by Shields . | . . . Regen/Repaired (Parts) 85 | . 85 . Core Remaining (%) 100 | 100 . . Volleys Fired 30 | 14 15 1 Largest 2 | 2 2 1 Hottest 60 | 60 40 20 Shots Fired 59 | 28 30 1 Gun 59 | 28 30 1 Cannon . | . . . Launcher . | . . . Special . | . . . Kinetic 45 | 14 30 1 Thermal . | . . . Explosive . | . . . Electromagnetic 14 | 14 . . Robot Hit Streak 7 | 6 7 . Robot Miss Streak 3 | 3 2 1 Penetration Max . | . . . Secondary Targets . | . . . Shots Hit Robots 70 | 18 52 . Core Hits 28 | 10 18 . Critical Kills 2 | . 2 . Critical Parts Destroyed 5 | . 5 . Critical Strikes 7 | . 7 . Smash 7 | . 7 . Melee Attacks 44 | . 44 . Impact 44 | . 44 . Slashing . | . . . Piercing . | . . . Sneak Attacks 16 | . 16 . Combat Hostiles . | . . . Follow-up Attacks 2 | . 2 . Damage Inflicted 1804 | 219 1585 . Guns 331 | 180 151 . Cannons . | . . . Explosions 39 | 39 . . Melee 1434 | . 1434 . Ramming . | . . . Kinetic 217 | 66 151 . Thermal 39 | 39 . . Explosive . | . . . Electromagnetic 114 | 114 . . Impact 1434 | . 1434 . Slashing . | . . . Piercing . | . . . Highest Corruption 8 | . 1 8 Average Corruption 1 | . 1 1 Corruption Purged . | . . . Corruption Blocked . | . . . Effects 18 | . 17 1 Message Errors 4 | . 3 1 Matter Fused 6 | . 6 . Heat Flow Errors 2 | . 2 . Data Loss (minor) 3 | . 3 . Data Loss (major) 1 | . 1 . Alerts 2 | . 2 . Overload Shots . | . . . Overflow Damage 547 | 20 527 . Projectiles . | . . . Explosions 20 | 20 . . Melee 527 | . 527 . Knockbacks 1 | . 1 . Impact 1 | . 1 . Kinetic . | . . . Secondary . | . . . Self-Inflicted Damage 40 | 40 . . Shots 1 | 1 . . Rammed . | . . . Targets Rammed . | . . . Kicked . | . . . Crushed . | . . . Highest Temperature 248 | 52 248 6 Average Temperature 62 | 21 121 3 Received Heat Transfer 140 | . 60 80 Siege Activations . | . . . Robots Corrupted . | . . . Combat Hostiles . | . . . Parts Fried 14 | . 14 . Impact Corruptions 18 | . 18 . Robots Melted . | . . . Combat Hostiles . | . . . Parts Melted . | . . . Heat Transferred 50 | 50 . . Parts Sabotaged . | . . . Parts Stolen . | . . . Parts Stripped . | . . . Power Chain Reactions 1 | 1 . . Missiles Intercepted . | . . . Alert | -11 -10 -10 ------- Run | Scr Mat Min Peak Influence 319 | 35 319 13 Initial 22 | . 22 13 Average 72 | 16 85 11 Maximum Alert Level 1 | . 1 . Low Security (%) 92 | 100 91 100 Level 1 7 | . 8 . Level 2 . | . . . Level 3 . | . . . Level 4 . | . . . Level 5 . | . . . High Security . | . . . Max Security . | . . . Squads Dispatched 3 | . 3 . Investigation 2 | . 2 . Extermination . | . . . Reinforcement 1 | . 1 . Assault . | . . . Garrison . | . . . Intercept . | . . . Searches Triggered . | . . . Construction Impeded . | . . . Haulers Reinforced . | . . . Active Scanning Responses . | . . . Cargo Convoy Interrupts . | . . . Stealth | -11 -10 -10 --------- Run | Scr Mat Min Distress Signals 1 | . 1 . Communications Jammed . | . . . Distress Signals . | . . . Times Spotted 38 | . 25 13 Peak Tracking Total 13 | . 6 13 Tactical Retreats 3 | . 2 1 Traps | -11 -10 -10 ------- Run | Scr Mat Min Traps Triggered 1 | . 1 . Indirectly . | . . . Trap Hack Attempts . | . . . Triggered . | . . . Disarmed . | . . . Reprogrammed . | . . . Reused . | . . . Traps Extracted . | . . . Installed . | . . . Triggered . | . . . Machines | -11 -10 -10 ---------- Run | Scr Mat Min Machines Disabled . | . . . Max in Single Turn . | . . . Machines Sabotaged . | . . . Overloaded Fab Kills . | . . . Hacking | -11 -10 -10 --------- Run | Scr Mat Min Machines Accessed 8 | . 8 . Terminals 6 | . 6 . Fabricators . | . . . Repair Stations 1 | . 1 . Recycling Units 1 | . 1 . Scanalyzers . | . . . Garrison Access . | . . . Total Hacks 18 | . 18 . Successful 10 | . 10 . Failed 8 | . 8 . Catastrophic 1 | . 1 . Database Lockouts . | . . . Manual 13 | . 13 . Terminals 15 | . 15 . Fabricators . | . . . Repair Stations 2 | . 2 . Recycling Units 1 | . 1 . Scanalyzers . | . . . Garrison Access . | . . . Terminal Hacks 7 | . 7 . Part Schematic 1 | . 1 . Prototype ID Bank 2 | . 2 . Alert Level 1 | . 1 . Unreport Threat 1 | . 1 . Locate Traps 1 | . 1 . Recall Reinforcements 1 | . 1 . Fabricator Hacks . | . . . Repair Station Hacks 2 | . 2 . Scan Component 1 | . 1 . Repair 1 | . 1 . Recycling Unit Hacks . | . . . Scanalyzer . | . . . Garrison Access Hacks . | . . . Unauthorized Hacks 1 | . 1 . Terminals . | . . . Fabricators . | . . . Repair Stations . | . . . Recycling Units 1 | . 1 . Tunnel 1 | . 1 . Scanalyzers . | . . . Garrison Access . | . . . Data Cores Recovered . | . . . Used . | . . . Hacking Detections 8 | . 8 . Full Trace Events 3 | . 3 . Feedback Events . | . . . Feedback Blocked . | . . . Robot Schematics Acquired . | . . . Robots Built . | . . . Authchips . | . . . Time . | . . . Total Robot Build Rating . | . . . Part Schematics Acquired 1 | . 1 . Parts Built . | . . . Authchips . | . . . Time . | . . . Total Part Build Rating . | . . . Parts Repaired 1 | . 1 . Time 26 | . 26 . Parts Recycled . | . . . Recycled Matter . | . . . Retrieved Matter . | . . . Retrieved Components . | . . . Parts Scanalyzed . | . . . Part Schematics Acquired . | . . . Parts Damaged . | . . . Bothacking | -11 -10 -10 ------------ Run | Scr Mat Min Used RIF Installer . | . . . Robots Hacked . | . . . Non-combat . | . . . Combat . | . . . Robot Hacks Applied . | . . . Relay Couplers Released . | . . . Fabnet Peak Effective % . | . . . Robots Rewired . | . . . Allies Hacked . | . . . Hacks Repelled . | . . . Allies | -11 -10 -10 -------- Run | Scr Mat Min Total Allies . | . . . Largest Group . | . . . Highest-Rated Group . | . . . Highest-Rated Ally . | . . . Total Orders . | . . . Ally Attacks . | . . . Total Damage . | . . . Kills . | . . . Allies Corrupted . | . . . Allies Melted . | . . . Intel | -11 -10 -10 ------- Run | Scr Mat Min Robot Analysis Total . | . . . Derelict Logs Recovered 1 | . . 1 Drone Launches . | . . . Drone Recoveries . | . . . Exploration | -11 -10 -10 ------------- Run | Scr Mat Min Turns Passed 2263 | 168 1852 243 Spaces Moved 1186 | 73 980 133 Core 6 | 3 . 3 Treads 553 | 70 483 . Legs . | . . . Wheels 627 | . 497 130 Hover . | . . . Flight . | . . . Fastest Speed 50 | 50 160 50 Average Speed 167 | 155 167 172 Slowest Speed 175 | 160 175 175 Overloaded Moves . | . . . Propulsion Burnouts . | . . . Robots Hopped . | . . . Cave-ins Triggered . | . . . Exploration Rate (%) 45 | 5 98 34 Regions Visited 2 Branch Regions 1 Pre-discovered Areas 2 | . 1 1 Known Exits Taken . | . . . Unknown Exits Taken 2 | 1 1 . Scrap Searched . | . . . Spaces Dug . | . . . Terrain Destroyed 7 | 7 . . Melee . | . . . Projectile . | . . . AOE 7 | 7 . . Terrain Rammed . | . . . Walls Destroyed . | . . . Machines Disabled . | . . . Actions | -11 -10 -10 --------- Run | Scr Mat Min Total 1342 | 98 1099 145 Wait 22 | . 22 . Move 1184 | 72 979 133 Hop . | . . . Pick Up 30 | 4 24 2 Fast Attach 11 | 7 3 1 Attach 3 | . . 3 Detach . | . . . Swap 14 | 1 10 3 Drop 12 | . 10 2 Fire 30 | 14 15 1 Melee 36 | . 36 . Ram . | . . . Kick . | . . . Crush . | . . . Escape Stasis . | . . . Rewire . | . . . Trap . | . . . Miscellaneous . | . . . Route ------- -11/Scrapyard -10/Materials (discovered 5 exits: [*Mat x3] / [*Min x2]) -10/Mines History --------- Turn | Location | Event 8 | -11/Scrapyard | Discovered new exit (range 16) 169 | -11/Scrapyard | Entered Materials 311 | -10/Materials | Build established: Mutant 449 | -10/Materials | Discovered new exit (range 15) 624 | -10/Materials | Discovered new exit (range 4) 713 | -10/Materials | Discovered new exit (range 11) 797 | -10/Materials | Discovered new exit (range 13) 1018 | -10/Materials | Discovered new exit (range 15) 1242 | -10/Materials | Repaired Lgt. Treads? 2021 | -10/Materials | Entered Mines 2056 | -10/Mines | A weapon hastily lodged in a ceiling crevice suddenly fell to the ground 2164 | -10/Mines | Learned location of Zion (-6) 2216 | -10/Mines | Assembled infested the area 2259 | -10/Mines | Core integrity fell below 50% 2260 | -10/Mines | Released all parts (3) 2263 | -10/Mines | Core integrity fell below 20% 2264 | -10/Mines | Destroyed by as-94964 with Assembled Blade Last Messages --------------- 02243_ Med. Armor Plating destroyed. 02250_ as-06627 destroyed. 02250_ as-23368 destroyed. 02252_ as-39131 destroyed. 02252_ Enh. Flamer destroyed. 02254_ Lgt. Treads destroyed. 02255_ Integrated Corrupted Lgt. Treads (+4). 02255_ Complication: Ion Engine rejected. 02255_ Complication: Assault Rifle rejected. 02255_ Complication: Mace rejected. 02260_ Lgt. Armor Plating destroyed. 02260_ T-07 Excavator destroyed. 02260_ Released Com. Wheel. 02260_ Released Huge Storage Unit. 02260_ Released Lgt. Treads. 02260_ Dropped Weapon Shielding. 02261_ Acquired Huge Storage Unit. 02263_ Acquired Corrupted Lgt. Treads. 02263_ Integrated Corrupted Lgt. Treads (+3). 02263_ Complication: Energy sink damages Corrupted Lgt. Treads (-31). Map ----- +----------------------------------------------------+ | ??????????????????????????????????????# #?? | | ??????????????????????????????????????# #?? | | ??????????????????????????????????????# #?? | | ??????????????????????????????????????# #?? | | ??????????????????????????????????????# #?? | | ???????????????????###????????????????# #?? | | ??????????????????? ????????????????# #?? | | ??????????????????? ????????????????# #?? | | ???????????????????# ????????????????# #?? | | ???????????????????# ???????????????## ##? | | ???????????????????# ??????????????## #? | | ???????????????????# #????????????## #? | | #??????????????????# #????????????# #? | | ??????????????????# #????????????# ! ##? | | ??????????????????# #????????????#*%= ##?? | | ??????????????????# #????????????# | #??? | | ##???????????#????# #???????????## ##?? | | #?????????? #????# #????????#### ##? | | ##???????? #????# #???????## % % #? | | ######### #????# #??????## aa #? | | #????# ##???### a #? | | #???## ##?##!! a #? | | ##### #####???# ###![*[ ##? | | ##???# #???????# !! a*/= ####?? | | ##????# #???????## aa/a! ##????? | | ##?????# #????????## @!!!%= ##?????? | | ##??????# #?????????## !! ###??????? | | #???????# ############ ## ##????????? | | ????????# #######?????????? | | ????????############### ##???????????????? | | ??????????????????????#####????????????????? | | ???????????????????????????????????????????? | | | | | | | | | | | | | | | | | | | | | | | | | | | | | | | | | | | | | +----------------------------------------------------+ Best States ------------- Heat Dissipation 25 Energy Generation 10 Energy Capacity 250 Matter Stores 300 Matter Capacity 300 Sight Range 16 Terrain Scan Density 10 Armor Coverage 225 Evasion (%) 40 Recoil Reduction 2 Item Schematics ----------------- Huge Storage Unit | -10/Materials | Hacked Robot Schematics ------------------ None Fabricated ------------ Nothing Alien Tech Used ----------------- None Achievements -------------- None Challenges ------------ None Game ------ Seed AuthchipTractorArmor Manual? 1 Play Time 00:18:20 Cumulative 343.9 hours Start 2022.09.30 @ 16:27:41 End 2022.12.02 @ 19:43:24 Sessions 9 Manual Loads 0 Difficulty Rogue Special Mode None Game No. 160 Rogue 160 Adventurer 0 Explorer 0 Win Type - Total 8 Types 5/0/1/1/0/0/0/1/0 Lore% 87 Gallery% 92 Achievement% 70 Wizard Run 0 Options --------- ASCII 0 Keyboard 1 Movement Vi Keybinds 0 Fullscreen 2 Font 18/Cog Map View 76x50 Tactical HUD 1 Map Filters NONE Filters NONE Steam 0 RUN: 026f6370-74b7-4a99-9f10-3222a9765967